bitfinex/quotes_BTCUSD_20241206
["timestamp","ask_amount","ask_price","bid_price","bid_amount"]
[1733448659894,0.04273517,97776.0,97750.0,0.00177822]
[1733448660139,0.04273517,97776.0,97749.0,0.10503154]
[1733448660347,0.04273517,97776.0,97749.0,1.60503154]
[1733448660519,0.04273517,97776.0,97749.0,1.5]
[1733448661208,0.04273517,97776.0,97746.0,0.0798]
[1733448661410,0.04273517,97776.0,97747.0,0.09503154]
[1733448661624,0.001,97779.0,97747.0,0.09503154]
[1733448661827,0.001,97779.0,97748.0,0.08105027]
[1733448662016,0.001,97779.0,97750.0,0.39128428]
[1733448662202,0.001,97779.0,97756.0,1.5]
[1733448662356,0.001,97779.0,97757.0,0.10503154]
[1733448662566,0.001,97779.0,97773.0,0.00311655]
[1733448662767,0.001,97779.0,97773.0,1.02616814]
[1733448663221,0.001,97779.0,97771.0,0.0757]
[1733448663397,0.001,97779.0,97776.0,0.02611297]
[1733448663605,0.001,97779.0,97776.0,0.13114451]
[1733448663812,0.01009529,97777.0,97776.0,0.13114451]
[1733448663976,0.01009529,97777.0,97776.0,0.10503154]
[1733448664177,0.01009529,97777.0,97776.0,1.60807898]
[1733448664398,0.01009529,97777.0,97776.0,1.7178692]
[1733448664786,0.01009529,97777.0,97776.0,1.73554269]
[1733448664990,0.01009529,97777.0,97776.0,1.7078692]
[1733448665325,0.01009529,97777.0,97776.0,1.72554269]
[1733448666162,0.01009529,97777.0,97776.0,1.73854269]
[1733448666373,0.01009529,97777.0,97776.0,2.0128756]
[1733448666519,0.01009529,97777.0,97776.0,1.78744269]
[1733448666750,0.01009529,97777.0,97776.0,1.77744269]
[1733448667167,0.01009529,97777.0,97776.0,1.76744269]
[1733448667765,0.01009529,97777.0,97776.0,1.75744269]
[1733448668182,0.01009529,97777.0,97776.0,1.92774388]
[1733448668355,0.01009529,97777.0,97776.0,1.75052075]
[1733448668613,0.01009529,97777.0,97776.0,1.74052075]
[1733448669044,0.01009529,97777.0,97776.0,1.70284726]
[1733448669245,0.01009529,97777.0,97776.0,1.81505013]
[1733448669436,0.01009529,97777.0,97776.0,1.69756492]
[1733448669761,0.01009529,97777.0,97776.0,1.97289825]
[1733448670161,0.01009529,97777.0,97776.0,1.78259646]
[1733448670638,0.01009529,97777.0,97776.0,1.73369646]
[1733448670842,0.01009529,97777.0,97776.0,1.66560202]
[1733448671167,0.01009529,97777.0,97776.0,1.68597874]
[1733448671679,0.01009529,97777.0,97776.0,1.7661225]
[1733448672064,0.01009529,97777.0,97776.0,1.7166964]
[1733448672251,0.01009529,97777.0,97776.0,1.76861742]
[1733448672449,0.01009529,97777.0,97776.0,1.75861742]
[1733448672656,0.01009529,97777.0,97776.0,1.70052304]
[1733448672870,0.01009529,97777.0,97776.0,1.6211096]
[1733448673243,0.01009529,97777.0,97776.0,0.1211096]
[1733448673650,0.01009529,97777.0,97775.0,1.5]
[1733448673651,0.01009529,97777.0,97775.0,1.49]
[1733448674230,0.01009529,97777.0,97771.0,1.04176808]
[1733448674417,0.01009529,97777.0,97771.0,0.01871649]
[1733448674615,0.01009529,97777.0,97768.0,0.03037672]
[1733448674836,0.01009529,97777.0,97776.0,0.00311126]
[1733448675035,0.01009529,97777.0,97769.0,0.0981428]
[1733448676038,0.01009529,97777.0,97776.0,0.00299894]
[1733448676246,0.01009529,97777.0,97776.0,0.10803048]
[1733448676405,0.01009529,97777.0,97776.0,0.13103048]
[1733448676806,0.01009529,97777.0,97776.0,0.12103048]
[1733448677185,0.01009529,97777.0,97776.0,0.09803048]
[1733448677815,0.01009529,97777.0,97776.0,0.10105727]
[1733448677943,0.01009529,97777.0,97776.0,0.00302679]
[1733448678548,0.01009529,97777.0,97768.0,1.04235674]
[1733448678549,0.01009529,97777.0,97768.0,0.01930515]
[1733448678739,0.01009529,97777.0,97776.0,1.02603982]
[1733448679356,0.01009529,97777.0,97769.0,0.0082545]
[1733448679624,0.01009529,97777.0,97769.0,1.03130609]
[1733448680020,0.01009529,97777.0,97769.0,1.02305159]
[1733448680573,0.01009529,97777.0,97776.0,0.00307453]
[1733448680771,0.01009529,97777.0,97770.0,0.023]
[1733448681427,0.09585456,97776.0,97764.0,0.01862464]
[1733448681630,0.09585456,97776.0,97757.0,1.02305159]
[1733448681857,0.01009529,97777.0,97758.0,0.10503154]
[1733448682073,0.01009529,97777.0,97760.0,0.0017292]
[1733448682311,0.00353332,97777.0,97763.0,0.00304576]
[1733448682782,0.10503154,97776.0,97760.0,0.0017292]
[1733448682995,0.09566529,97776.0,97760.0,0.0017292]
[1733448683207,0.08423475,97776.0,97760.0,0.0017292]
[1733448683854,0.00353332,97777.0,97760.0,0.0017292]
[1733448684052,0.04422066,97788.0,97760.0,0.0017292]
[1733448684274,0.10503154,97787.0,97761.0,0.023]
[1733448685210,0.10503154,97787.0,97763.0,0.023]
[1733448686019,0.10503154,97787.0,97764.0,0.00195312]
[1733448686359,0.10503154,97787.0,97765.0,0.023]
[1733448686819,0.03257777,97817.0,97766.0,0.10698466]
[1733448687037,0.0008646,97840.0,97767.0,0.023]
[1733448687038,0.05366901,97800.0,97767.0,0.023]
[1733448687273,0.01336828,97800.0,97769.0,0.023]
[1733448687495,0.01336828,97800.0,97771.0,0.023]
[1733448687699,0.01336828,97800.0,97770.0,0.10698466]
[1733448687700,0.01336828,97800.0,97773.0,0.023]
[1733448687935,0.01336828,97800.0,97775.0,0.023]
[1733448688143,0.03257777,97808.0,97776.0,0.030783]
[1733448688351,0.10503154,97807.0,97777.0,0.023]
[1733448688593,0.10503154,97807.0,97778.0,0.00195312]
[1733448688814,0.10503154,97807.0,97779.0,0.023]
[1733448689013,0.10503154,97807.0,97780.0,0.00582356]
[1733448689220,0.10503154,97807.0,97781.0,0.023]
[1733448690277,0.10503154,97807.0,97780.0,0.00582356]
[1733448690278,0.051,97819.0,97788.0,0.023]
[1733448690505,0.10503154,97818.0,97788.0,0.023]
[1733448692104,0.10503154,97818.0,97790.0,0.023]
[1733448692340,0.10503154,97818.0,97790.0,1.05187515]
[1733448692817,0.10503154,97818.0,97791.0,0.00582356]
[1733448693046,0.10503154,97818.0,97792.0,0.023]
[1733448693272,0.10503154,97818.0,97793.0,0.00582356]
[1733448693496,0.10648414,97818.0,97794.0,0.023]
[1733448693732,0.10648414,97818.0,97795.0,0.00582356]
[1733448693994,0.10648414,97818.0,97796.0,0.023]
[1733448694389,0.10648414,97818.0,97797.0,0.02687417]
[1733448694390,0.10520623,97818.0,97797.0,0.02687417]
[1733448694596,0.10255269,97818.0,97797.0,0.02687417]
[1733448695033,0.1038306,97818.0,97797.0,0.02687417]
[1733448695238,0.05,97816.0,97797.0,0.02687417]
[1733448695440,0.05,97806.0,97797.0,0.02687417]
[1733448695645,0.05,97806.0,97787.0,0.13824363]
[1733448695646,0.10630963,97805.0,97787.0,0.09320405]
[1733448695860,0.10630963,97805.0,97787.0,0.00312489]
[1733448696070,0.0823,97798.0,97781.0,0.02687417]
[1733448696325,0.0823,97798.0,97787.0,0.02386398]
[1733448696326,0.10503154,97797.0,97787.0,0.02386398]
[1733448696569,0.10630973,97797.0,97781.0,0.02687417]
[1733448696800,0.05,97794.0,97781.0,0.02687417]
[1733448697042,0.10503154,97793.0,97781.0,0.02316122]
[1733448697274,0.10503154,97793.0,97776.0,1.02305159]
[1733448697493,0.03257777,97799.0,97776.0,1.02305159]
[1733448697494,0.05,97809.0,97781.0,0.02923385]
[1733448697749,0.03257777,97799.0,97780.0,0.09007916]
[1733448697972,0.13760931,97799.0,97780.0,0.09007916]
[1733448698193,0.13760931,97799.0,97783.0,0.09007916]
[1733448698443,0.10503154,97799.0,97783.0,0.09007916]
[1733448698694,0.15503154,97798.0,97783.0,0.09007916]
[1733448699186,0.15503154,97798.0,97784.0,0.09007916]
[1733448699671,0.15503154,97798.0,97788.0,0.09007916]
[1733448699906,0.15503154,97798.0,97787.0,0.09007916]
[1733448700827,0.15503154,97798.0,97789.0,0.09007916]
[1733448701055,0.15503154,97798.0,97787.0,0.13511874]
[1733448701056,0.15503154,97798.0,97790.0,0.09007916]
[1733448701742,0.15503154,97798.0,97793.0,0.09007916]
[1733448701956,0.15503154,97798.0,97793.0,0.08007916]
[1733448702166,0.15503154,97798.0,97788.0,0.18015832]
[1733448702167,0.03257777,97793.0,97790.0,0.02346442]
[1733448702378,0.10503154,97792.0,97790.0,0.02346442]
[1733448702582,0.03257777,97794.0,97790.0,0.13511874]
[1733448702812,0.03257777,97794.0,97788.0,0.18015832]
[1733448702813,0.03257777,97793.0,97791.0,0.13511874]
[1733448703236,0.03257777,97793.0,97789.0,0.18015832]
[1733448703237,0.02757458,97793.0,97792.0,0.13511874]
[1733448703446,0.10241548,97794.0,97792.0,0.13511874]
[1733448703663,0.10241548,97794.0,97792.0,0.18015832]
[1733448703664,0.02757458,97793.0,97792.0,0.18015832]
[1733448703892,0.10241548,97794.0,97792.0,0.18015832]
[1733448704344,0.12999006,97794.0,97793.0,0.18015832]
[1733448704556,0.12999006,97794.0,97792.0,0.2251979]
[1733448705374,0.12999006,97794.0,97792.0,0.2151979]
[1733448705571,0.12999006,97794.0,97788.0,0.02376229]
[1733448705989,0.12999006,97794.0,97785.0,0.27023748]
[1733448706420,0.10241548,97794.0,97785.0,0.27219057]
[1733448706673,0.12999006,97794.0,97786.0,0.27219057]
[1733448706857,0.10241548,97794.0,97785.0,0.26219057]
[1733448707446,0.10241548,97794.0,97777.0,0.01]
[1733448707447,0.12999006,97794.0,97777.0,0.40863478]
[1733448707670,0.12999006,97794.0,97778.0,0.00528886]
[1733448707866,0.12999006,97794.0,97777.0,0.02567768]
[1733448708115,0.10241548,97794.0,97777.0,0.02567768]
[1733448708318,0.02757458,97794.0,97777.0,0.01567768]
[1733448708659,0.05,97798.0,97777.0,0.01567768]
[1733448708660,0.05,97798.0,97777.0,0.02924281]
[1733448708870,0.05,97798.0,97778.0,0.02924281]
[1733448710638,0.05,97798.0,97774.0,0.023]
[1733448710865,0.05,97798.0,97774.0,0.05224281]
[1733448711958,0.05,97798.0,97774.0,0.45429529]
[1733448712336,0.05,97809.0,97797.0,0.22674801]
[1733448712535,0.05,97809.0,97775.0,0.53632683]
[1733448712536,0.05,97809.0,97808.0,0.18137972]
[1733448712712,0.05,97809.0,97806.0,0.18137972]
[1733448713133,0.05,97809.0,97780.0,0.0751]
[1733448713134,0.05127804,97809.0,97807.0,0.13600354]
[1733448713378,0.05,97806.0,97803.0,0.22672466]
[1733448713506,0.05,97806.0,97781.0,1.42510407]
[1733448713507,0.05,97806.0,97805.0,0.18127209]
[1733448713896,0.05,97806.0,97805.0,0.18129784]
[1733448714373,0.05,97806.0,97803.0,0.22662231]
[1733448714570,0.05,97806.0,97805.0,0.18128044]
[1733448714750,0.05,97806.0,97803.0,0.18128044]
[1733448714947,0.05,97804.0,97802.0,0.17128044]
[1733448715174,0.05,97799.0,97798.0,0.22662231]
[1733448715449,0.05,97796.0,97792.0,0.22662231]
[1733448715657,0.05,97796.0,97789.0,0.02337207]
[1733448715859,0.05,97796.0,97783.0,0.27194677]
[1733448716073,0.05,97796.0,97782.0,0.2858069]
[1733448716300,0.0823,97812.0,97798.0,20.84211426]
[1733448716512,0.10580131,97811.0,97802.0,0.09063084]
[1733448716710,0.10580131,97811.0,97798.0,20.84211426]
[1733448716711,0.10580131,97811.0,97803.0,0.09063084]
[1733448716918,0.10580131,97811.0,97802.0,0.09063084]
[1733448717387,0.10580131,97811.0,97803.0,0.09063084]
[1733448717500,0.10580131,97811.0,97800.0,0.13594626]
[1733448717501,0.10580131,97811.0,97804.0,0.09063084]
[1733448717881,0.0008646,97810.0,97804.0,0.09063084]
[1733448718157,0.10580131,97809.0,97805.0,0.09063084]
[1733448718525,0.10580131,97809.0,97805.0,0.08063084]
[1733448718762,0.10580131,97809.0,97801.0,0.13594626]
[1733448719897,0.10580131,97809.0,97801.0,0.12594626]
[1733448720136,0.10580131,97809.0,97800.0,0.02393357]
[1733448724394,0.10580131,97809.0,97800.0,0.01393357]
[1733448725374,0.10580131,97809.0,97800.0,0.00393357]
[1733448725582,0.10580131,97809.0,97798.0,20.84211426]
[1733448726199,0.10580131,97809.0,97798.0,20.83211426]
[1733448727180,0.10580131,97809.0,97798.0,20.8457915]
[1733448728518,0.10580131,97809.0,97803.0,0.09059979]
[1733448728728,0.10580131,97809.0,97804.0,0.09059979]
[1733448728940,0.10580131,97809.0,97805.0,0.09059979]
[1733448729387,0.10580131,97809.0,97806.0,0.09059979]
[1733448730053,0.10580131,97809.0,97808.0,0.09059979]
[1733448730267,0.08630481,97809.0,97806.0,0.16475912]
[1733448730491,0.08630481,97809.0,97808.0,0.13585431]
[1733448730710,0.0008646,97810.0,97806.0,0.21010361]
[1733448730920,0.08609517,97810.0,97808.0,0.13583862]
[1733448731136,0.0823,97812.0,97808.0,0.13583862]
[1733448731361,0.10503154,97811.0,97808.0,0.13583862]
[1733448731577,0.10503154,97811.0,97809.0,0.13583862]
[1733448732008,0.10503154,97811.0,97809.0,0.12583862]
[1733448732231,0.0816,97829.0,97810.0,0.02890481]
[1733448732441,0.0816,97829.0,97815.0,0.09056323]
[1733448732442,0.10520623,97818.0,97815.0,0.09056323]
[1733448732648,0.10520623,97818.0,97812.0,0.1811988]
[1733448733103,0.10520623,97818.0,97811.0,0.1811988]
[1733448733370,0.10520623,97818.0,97812.0,0.1811988]
[1733448733492,0.10520623,97818.0,97811.0,0.1711988]
[1733448733697,0.10520623,97818.0,97810.0,0.02890481]
[1733448734632,0.10520623,97818.0,97810.0,0.04217711]
[1733448734836,0.10520623,97818.0,97810.0,0.0232723]
[1733448735183,0.10520623,97818.0,97806.0,0.2264985]
[1733448735384,0.10520623,97818.0,97806.0,0.2164985]
[1733448735919,0.10520623,97818.0,97805.0,0.02884144]
[1733448736379,0.0146417,97843.0,97807.0,0.023]
[1733448736710,0.0146417,97843.0,97811.0,0.023]
[1733448736711,0.00102221,97839.0,97811.0,0.023]
[1733448736862,0.00102221,97842.0,97812.0,0.10605365]
[1733448737117,0.00102221,97842.0,97813.0,0.013]
[1733448737317,0.00102221,97842.0,97817.0,0.2717982]
[1733448737517,0.00102221,97842.0,97818.0,0.02743383]
[1733448737679,0.00102221,97842.0,97818.0,0.04716679]
[1733448738287,0.00102221,97842.0,97818.0,0.03716679]
[1733448738686,0.00102221,97842.0,97819.0,0.0173964]
[1733448738935,0.00102221,97842.0,97820.0,0.02973296]
[1733448739131,0.10503154,97841.0,97820.0,0.02973296]
[1733448739335,0.10503154,97841.0,97817.0,0.2717982]
[1733448739336,0.00127778,97840.0,97816.0,0.27483377]
[1733448739656,0.10503154,97839.0,97816.0,0.00303557]
[1733448739791,0.10503154,97839.0,97814.0,0.26534501]
[1733448739792,0.00127778,97838.0,97814.0,0.26534501]
[1733448739991,0.10630932,97838.0,97814.0,0.29507797]
[1733448740252,0.10630932,97838.0,97815.0,0.02973296]
[1733448740657,0.10630932,97838.0,97815.0,0.01973296]
[1733448740872,0.10630932,97838.0,97813.0,1.04640247]
[1733448741075,0.0808,97836.0,97827.0,0.13543931]
[1733448741314,0.10630941,97835.0,97826.0,0.13543931]
[1733448741491,0.10630941,97835.0,97821.0,0.18056805]
[1733448741927,0.10630941,97835.0,97817.0,0.18056805]
[1733448742124,0.10630941,97835.0,97819.0,0.18056805]
[1733448742323,0.10630941,97835.0,97810.0,0.0017284]
[1733448742324,0.10630941,97835.0,97815.0,0.17056805]
[1733448742753,0.10630941,97835.0,97820.0,0.09029375]
[1733448743129,0.10630941,97835.0,97819.0,0.09029375]
[1733448743305,0.10630941,97835.0,97820.0,0.09029375]
[1733448743521,0.10630941,97835.0,97819.0,0.09029375]
[1733448744782,0.00915662,97843.0,97810.0,0.22745493]
[1733448744783,0.00915662,97843.0,97826.0,0.09029375]
[1733448744919,0.0808,97847.0,97828.0,0.09029375]
[1733448745116,0.0808,97847.0,97820.0,0.25462616]
[1733448745117,0.10503154,97846.0,97829.0,0.09029375]
[1733448745364,0.00123768,97845.0,97829.0,0.09029375]
[1733448745569,0.00123789,97844.0,97835.0,0.09029375]
[1733448745958,0.00123789,97844.0,97833.0,0.09029375]
[1733448746447,0.00123789,97844.0,97830.0,0.09029375]
[1733448746650,0.00123789,97844.0,97829.0,0.09029375]
[1733448746849,0.00123789,97844.0,97832.0,0.09029375]
[1733448747369,0.00123789,97846.0,97832.0,0.09029375]
[1733448747572,0.00123789,97845.0,97833.0,0.09029375]
[1733448747979,0.00123789,97845.0,97833.0,0.02639167]
[1733448748182,0.00123789,97845.0,97834.0,0.02639167]
[1733448748711,0.00123789,97848.0,97835.0,0.11919338]
[1733448748867,0.00123789,97847.0,97837.0,0.09029375]
[1733448749063,0.00123789,97847.0,97838.0,0.02889963]
[1733448749257,0.00123789,97848.0,97838.0,0.02889963]
[1733448751065,0.00123789,97848.0,97835.0,0.09029375]
[1733448751281,0.00123789,97848.0,97834.0,0.09029375]
[1733448751487,0.00123789,97848.0,97833.0,0.09006793]
[1733448751744,0.00123789,97848.0,97834.0,0.09006793]
[1733448752413,0.00123789,97848.0,97833.0,0.02889963]
[1733448752414,0.00123789,97848.0,97833.0,0.11896756]
[1733448752614,0.00123789,97848.0,97834.0,0.09006793]
[1733448752751,0.00123789,97848.0,97833.0,0.11896756]
[1733448753181,0.00123789,97848.0,97834.0,0.09006793]
[1733448753380,0.00123789,97848.0,97833.0,0.09006793]
[1733448753583,0.00123789,97848.0,97831.0,0.12008414]
[1733448754126,0.00123789,97848.0,97832.0,0.09006793]
[1733448754530,0.00123789,97848.0,97831.0,0.12008414]
[1733448754860,0.00123789,97848.0,97831.0,0.09006793]
[1733448756441,0.00123789,97848.0,97831.0,0.08006793]
[1733448756752,0.00123789,97848.0,97828.0,0.1351019]
[1733448757104,0.049,97852.0,97828.0,0.1351019]
[1733448757105,0.0772,97862.0,97830.0,0.1351019]
[1733448757306,0.00017451,97850.0,97831.0,0.24115544]
[1733448757505,0.00017451,97850.0,97831.0,0.23115544]
[1733448757909,0.0772,97862.0,97832.0,0.02402196]
[1733448758119,0.05,97892.0,97832.0,0.02402196]
[1733448758120,1.43939394,97871.0,97835.0,0.1351019]
[1733448758346,1.43939394,97871.0,97837.0,0.023]
[1733448758515,1.43939394,97871.0,97836.0,0.29820665]
[1733448758516,1.43939394,97871.0,97840.0,0.00304468]
[1733448758722,1.43939394,97871.0,97842.0,0.1283]
[1733448758949,1.43939394,97871.0,97843.0,0.32473905]
[1733448759157,1.43939394,97871.0,97848.0,0.1351019]
[1733448759362,1.45052466,97871.0,97849.0,0.05807316]
[1733448759523,1.45052466,97871.0,97851.0,0.1351019]
[1733448759749,0.00102182,97870.0,97852.0,0.20970749]
[1733448759962,0.00102182,97870.0,97853.0,0.02872313]
[1733448760159,0.00102182,97870.0,97854.0,0.05705132]
[1733448760447,0.01215254,97870.0,97854.0,0.05807314]
[1733448760961,0.01215254,97870.0,97854.0,0.04807314]
[1733448761561,0.00102182,97869.0,97854.0,0.04807314]
[1733448762011,0.00102182,97869.0,97854.0,0.00102182]
[1733448762436,0.01215254,97869.0,97854.0,0.00102182]
[1733448762616,0.01215254,97869.0,97854.0,0.0472398]
[1733448762823,0.01215254,97869.0,97855.0,0.02815169]
[1733448763021,0.01215254,97869.0,97855.0,0.05621798]
[1733448763402,0.01215254,97869.0,97855.0,0.02806629]
[1733448763886,0.01215254,97869.0,97855.0,0.01806629]
[1733448764098,0.00368044,97869.0,97855.0,0.01806629]
[1733448764264,0.00102182,97868.0,97855.0,0.01806629]
[1733448764464,0.00470226,97868.0,97855.0,0.01806629]
[1733448765017,0.00470226,97868.0,97855.0,0.00806629]
[1733448765630,0.00470226,97868.0,97855.0,0.02639963]
[1733448765755,0.00470226,97868.0,97854.0,0.00102182]
[1733448766608,0.00470226,97868.0,97853.0,0.01755427]
[1733448766845,0.00470226,97868.0,97849.0,0.02996992]
[1733448766987,0.00470226,97868.0,97850.0,0.00051092]
[1733448767435,0.00470226,97868.0,97846.0,0.00051093]
[1733448767636,0.00368044,97868.0,97847.0,0.15800134]
[1733448768024,0.00368044,97868.0,97848.0,0.02282828]
[1733448768222,1.41672838,97871.0,97849.0,0.13059783]
[1733448768484,1.39143838,97871.0,97856.0,0.00311257]
[1733448768702,1.39143838,97871.0,97857.0,0.21349783]
[1733448768903,1.39143838,97871.0,97857.0,0.26030504]
[1733448769335,1.29567838,97871.0,97858.0,0.023]
[1733448769545,1.26675152,97871.0,97859.0,0.10503154]
[1733448769713,1.26675152,97871.0,97858.0,0.12259218]
[1733448769915,1.26675152,97871.0,97860.0,0.02661275]
[1733448770132,1.23999598,97871.0,97860.0,0.03539307]
[1733448770339,1.19497178,97871.0,97861.0,0.14815847]
[1733448770539,1.18172362,97871.0,97861.0,0.12259218]
[1733448770768,1.18172362,97871.0,97861.0,0.09503154]
[1733448771201,1.18172362,97871.0,97861.0,0.08503154]
[1733448771347,1.18172362,97871.0,97862.0,0.02890554]
[1733448771348,0.70938362,97871.0,97862.0,0.02890554]
[1733448771551,0.70938362,97871.0,97863.0,0.10503154]
[1733448771766,0.64826091,97871.0,97864.0,0.02890554]
[1733448771962,0.57544467,97871.0,97865.0,0.09503154]
[1733448772137,0.51470242,97871.0,97865.0,0.09503154]
[1733448772716,0.44451519,97871.0,97865.0,0.09503154]
[1733448772854,0.44451519,97871.0,97865.0,0.08503154]
[1733448773259,0.44451519,97871.0,97866.0,0.0381]
[1733448773260,0.35627347,97871.0,97866.0,0.0381]
[1733448773456,0.35627347,97871.0,97866.0,0.06700554]
[1733448773684,0.35627347,97871.0,97866.0,0.05700554]
[1733448774056,0.34202611,97871.0,97866.0,0.0281]
[1733448774255,0.0027,97895.0,97866.0,0.0181]
[1733448774455,0.00017448,97880.0,97867.0,0.01224516]
[1733448775083,0.00017448,97880.0,97867.0,0.00224516]
[1733448775486,0.00017448,97880.0,97857.0,0.11317174]
[1733448775695,0.00017448,97880.0,97858.0,0.12803154]
[1733448776448,0.00017448,97880.0,97858.0,0.11803154]
[1733448776777,0.00103848,97880.0,97858.0,0.10503154]
[1733448777024,0.0462,97901.0,97859.0,0.00102159]
[1733448777231,0.10630853,97899.0,97860.0,0.09503154]
[1733448777466,0.10630853,97899.0,97861.0,0.00102159]
[1733448777893,0.10130853,97899.0,97862.0,0.09503154]
[1733448778126,0.10130853,97899.0,97863.0,0.00102159]
[1733448778333,0.10130853,97899.0,97864.0,0.10503154]
[1733448778786,0.10130853,97899.0,97864.0,0.09503154]
[1733448779223,0.10130853,97899.0,97858.0,0.00017448]
[1733448779639,0.00127699,97899.0,97857.0,1.12521111]
[1733448779851,0.18723154,97896.0,97857.0,0.02908504]
[1733448780064,0.10503154,97892.0,97857.0,0.01908504]
[1733448780255,0.10503154,97892.0,97856.0,0.00311257]
[1733448780256,0.12967727,97891.0,97856.0,0.00311257]
[1733448780460,0.10503154,97890.0,97845.0,0.02267613]
[1733448780709,0.07827727,97889.0,97840.0,0.00477268]
[1733448780930,0.10503154,97888.0,97841.0,0.09503154]
[1733448781111,0.00127727,97887.0,97841.0,0.09503154]
[1733448781377,0.10503154,97886.0,97841.0,0.08503154]
[1733448781577,0.0462,97891.0,97840.0,0.03125014]
[1733448781578,0.1833089,97885.0,97840.0,0.03125014]
[1733448781743,0.10503154,97878.0,97840.0,0.02125014]
[1733448781917,0.12747745,97877.0,97830.0,0.001728]
[1733448782151,0.10503154,97876.0,97830.0,0.03070579]
[1733448782324,0.07827745,97875.0,97827.0,0.08961232]
[1733448782554,0.10503154,97874.0,97828.0,0.06890022]
[1733448782773,0.077,97872.0,97828.0,0.06890022]
[1733448782980,0.10630901,97871.0,97828.0,0.06890022]
[1733448783151,0.10630901,97871.0,97828.0,0.05890022]
[1733448783540,0.10630901,97871.0,97838.0,0.00307606]
[1733448783541,0.077,97869.0,97838.0,0.00307606]
[1733448783781,0.077,97867.0,97827.0,0.02960202]
[1733448784062,0.077,97867.0,97821.0,0.08961232]
[1733448784063,0.10630911,97866.0,97821.0,0.08961232]
[1733448784354,0.10630911,97866.0,97815.0,0.17922465]
[1733448784355,0.10630911,97866.0,97817.0,0.08961232]
[1733448784555,0.077,97865.0,97818.0,0.10503154]
[1733448784797,0.10630911,97864.0,97818.0,0.10503154]
[1733448784998,0.18203154,97863.0,97815.0,0.03034383]
[1733448785250,0.077,97861.0,97815.0,0.03034383]
[1733448785452,0.05047764,97862.0,97822.0,0.00306383]
[1733448785453,0.10503154,97853.0,97822.0,0.00306383]
[1733448785670,0.077,97851.0,97822.0,0.00306383]
[1733448785892,0.15550931,97850.0,97815.0,0.03034383]
[1733448786345,0.00127774,97849.0,97821.0,0.003032]
[1733448786511,0.10630928,97849.0,97821.0,0.003032]
[1733448786733,0.10630928,97849.0,97821.0,0.078832]
[1733448787224,0.10630928,97849.0,97821.0,0.068832]
[1733448787637,0.10503154,97849.0,97821.0,0.068832]
[1733448787844,0.00127757,97848.0,97821.0,0.068832]
[1733448788052,0.00127757,97848.0,97821.0,0.058832]
[1733448788655,0.00127757,97848.0,97821.0,0.19325049]
[1733448788893,0.00127757,97848.0,97821.0,0.058832]
[1733448789427,0.00127757,97848.0,97822.0,0.13441849]
[1733448789624,0.00127757,97848.0,97821.0,0.058832]
[1733448789625,0.00127757,97848.0,97821.0,0.18628952]
[1733448789822,0.10503154,97849.0,97822.0,0.12441849]
[1733448790059,0.10503154,97849.0,97821.0,0.06187103]
[1733448790301,0.0492,97862.0,97828.0,0.17922465]
[1733448790632,0.10630901,97861.0,97827.0,1.02305159]
[1733448791366,0.10630901,97861.0,97822.0,0.10503154]
[1733448791574,0.10630901,97861.0,97827.0,1.02305159]
[1733448791948,0.10630901,97861.0,97822.0,0.10503154]
[1733448792149,0.10630901,97861.0,97822.0,1.15838044]
[1733448793483,0.077,97860.0,97822.0,1.15838044]
[1733448793859,0.10630906,97859.0,97822.0,1.14838044]
[1733448794266,0.05,97849.0,97809.0,1.5]
[1733448794444,0.10503154,97848.0,97827.0,0.09000654]
[1733448794593,0.10630906,97848.0,97827.0,0.09000654]
[1733448794802,0.10503154,97848.0,97822.0,1.02305159]
[1733448795000,0.10503154,97848.0,97836.0,0.00304354]
[1733448795202,0.0675816,97860.0,97837.0,0.0758]
[1733448795426,0.17075402,97860.0,97837.0,0.0758]
[1733448795630,0.17075402,97860.0,97836.0,0.00362514]
[1733448795971,0.00127737,97859.0,97828.0,0.06942514]
[1733448796174,0.00127737,97859.0,97829.0,0.10503154]
[1733448796482,0.17133562,97860.0,97829.0,0.10503154]
[1733448796823,0.00127737,97859.0,97829.0,0.09503154]
[1733448797257,0.00013296,97859.0,97830.0,0.0010219]
[1733448797466,0.1302,97885.0,97839.0,0.00302732]
[1733448797827,0.10605334,97879.0,97840.0,0.10605336]
[1733448798355,0.10605334,97879.0,97840.0,0.28599438]
[1733448798585,0.10605334,97879.0,97844.0,0.17994102]
[1733448798586,0.05,97874.0,97844.0,0.17994102]
[1733448798793,0.00103849,97880.0,97839.0,1.25106696]
[1733448798794,0.0802,97854.0,97843.0,0.13492054]
[1733448799005,0.0010218,97853.0,97840.0,0.13492054]
[1733448799205,0.0010218,97853.0,97839.0,0.00302732]
[1733448799372,0.04714679,97855.0,97839.0,0.00302732]
[1733448799600,0.04714679,97859.0,97840.0,0.12542197]
[1733448799811,0.00103849,97880.0,97840.0,0.12542197]
[1733448799812,0.04714679,97855.0,97840.0,0.07782197]
[1733448800394,0.04714679,97855.0,97840.0,0.07955237]
[1733448800614,0.04714679,97855.0,97840.0,0.00275237]
[1733448801729,0.10605334,97854.0,97840.0,0.0017304]
[1733448801933,0.04714679,97845.0,97840.0,0.0017304]
[1733448802135,0.10605334,97844.0,97840.0,0.0017304]
[1733448803211,0.10283683,97844.0,97840.0,0.0017304]
[1733448803472,0.10283683,97844.0,97840.0,0.002312]
[1733448803639,0.09880252,97844.0,97840.0,0.03233076]
[1733448803886,0.09880252,97844.0,97840.0,0.002312]
[1733448804103,0.09880252,97844.0,97826.0,0.0010221]
[1733448804305,0.09880252,97844.0,97826.0,0.00119661]
[1733448805787,0.04714679,97845.0,97830.0,0.00308457]
[1733448806203,0.04714679,97845.0,97833.0,0.0900187]
[1733448806475,0.04714679,97845.0,97830.0,0.00308457]
[1733448806738,0.04714679,97845.0,97827.0,0.00102211]
[1733448807188,0.04714679,97846.0,97827.0,0.00102211]
[1733448807386,0.15217833,97846.0,97828.0,0.18006997]
[1733448807592,0.00102211,97845.0,97828.0,0.18109206]
[1733448808036,0.00102211,97845.0,97828.0,0.00102209]
[1733448808420,0.00102211,97845.0,97816.0,1.29315655]
[1733448808615,0.04772849,97846.0,97817.0,0.00102209]
[1733448808841,0.04772849,97846.0,97817.0,1.02305159]
[1733448809050,0.00127761,97845.0,97817.0,1.02305159]
[1733448809240,0.00127761,97845.0,97818.0,0.00051105]
[1733448809415,0.00127761,97845.0,97816.0,0.10503154]
[1733448809627,0.00127761,97845.0,97816.0,1.12808313]
[1733448809823,0.00127761,97845.0,97816.0,1.11808313]
[1733448810021,0.00127761,97845.0,97825.0,0.00303582]
[1733448810215,0.00127761,97845.0,97816.0,1.0603939]
[1733448810791,0.00127761,97845.0,97816.0,0.03734231]
[1733448811089,0.00127761,97845.0,97816.0,1.02305159]
[1733448811300,0.0005817,97846.0,97816.0,1.02305159]
[1733448811301,0.04772849,97846.0,97816.0,1.02305159]
[1733448811500,0.15276003,97846.0,97816.0,1.29315655]